bitfinex/quotes_SOLUSD_20241105
["timestamp","ask_amount","ask_price","bid_price","bid_amount"]
[1730770698616,6.3635,157.26,157.16,15.5855771]
[1730770698617,15.5855771,157.23,157.17,15.5855771]
[1730770698819,15.5855771,157.25,157.19,15.5855771]
[1730770699016,15.5855771,157.25,157.16,22.2701]
[1730770699017,20.0,157.24,157.2,15.5855771]
[1730770699428,20.0,157.24,157.19,15.5855771]
[1730770699619,35.5855771,157.24,157.19,15.5855771]
[1730770700012,20.0,157.22,157.17,15.5855771]
[1730770700232,15.5855771,157.21,157.16,15.9073]
[1730770700545,35.5855771,157.22,157.16,31.4928771]
[1730770700708,35.5855771,157.22,157.17,15.5855771]
[1730770701311,35.5855771,157.22,157.16,31.4928771]
[1730770701524,21.9464771,157.21,157.16,15.9073]
[1730770702513,15.5855771,157.18,157.13,22.2738]
[1730770702732,35.5855771,157.2,157.15,15.5855771]
[1730770703633,15.5855771,157.19,157.13,31.4955771]
[1730770704324,15.5855771,157.18,157.13,15.91]
[1730770704517,15.5855771,157.17,157.13,15.91]
[1730770705044,21.9483771,157.17,157.13,15.91]
[1730770705540,6.3628,157.17,157.13,15.91]
[1730770706136,21.9483771,157.17,157.11,38.0165771]
[1730770706344,21.9483771,157.17,157.12,15.5855771]
[1730770707329,15.9022,157.22,157.13,16.1149]
[1730770707533,0.3018699,157.37,157.13,16.1149]
[1730770707534,0.3018699,157.29,157.24,22.71208]
[1730770707730,0.3018699,157.37,157.26,24.027864]
[1730770707931,0.3018699,157.37,157.3,24.153354]
[1730770708128,0.3018699,157.37,157.32,0.12549]
[1730770708336,0.3018699,157.37,157.32,24.027864]
[1730770708640,0.3018699,157.37,157.36,39.3624611]
[1730770709433,0.3018699,157.37,157.36,54.96099036]
[1730770711638,0.3018699,157.37,157.36,79.79029672]
[1730770712533,0.3018699,157.45,157.37,23.902374]
[1730770712737,0.3018699,157.45,157.44,24.82930636]
[1730770713320,0.3018699,157.45,157.43,24.82930636]
[1730770713537,0.3018699,157.45,157.44,24.82930636]
[1730770715432,0.3018699,157.45,157.44,31.18090636]
[1730770717241,0.3018699,157.45,157.44,79.78709672]
[1730770717619,6.7066699,157.53,157.45,23.776884]
[1730770717822,6.7066699,157.53,157.5,24.82930636]
[1730770718039,0.3018699,157.53,157.51,24.82930636]
[1730770718825,0.3018699,157.53,157.52,24.82930636]
[1730770719539,0.3018699,157.53,157.5,24.82930636]
[1730770719743,6.6498699,157.53,157.48,40.70350636]
[1730770719922,6.6500699,157.53,157.48,40.70350636]
[1730770720553,24.82930636,157.51,157.46,24.82930636]
[1730770720754,24.82930636,157.51,157.43,24.82930636]
[1730770720755,24.82930636,157.48,157.43,24.82930636]
[1730770720958,24.82930636,157.47,157.42,31.18170636]
[1730770721159,24.82930636,157.48,157.43,2.33330903]
[1730770721360,24.82930636,157.49,157.43,24.82930636]
[1730770721739,24.95479636,157.5,157.44,24.82930636]
[1730770722259,31.30419636,157.5,157.44,24.82930636]
[1730770722747,44.82930636,157.49,157.43,24.82930636]
[1730770722942,24.82930636,157.48,157.43,24.82930636]
[1730770723655,44.82930636,157.49,157.43,24.82930636]
[1730770723850,24.82930636,157.49,157.44,24.82930636]
[1730770724382,31.17900636,157.49,157.44,24.82930636]
[1730770724559,31.17900636,157.49,157.43,47.06100636]
[1730770724939,6.3497,157.49,157.44,24.82930636]
[1730770725564,31.17900636,157.49,157.44,24.82930636]
[1730770726239,6.3497,157.49,157.44,31.18090636]
[1730770726566,31.17900636,157.49,157.44,6.3516]
[1730770727135,31.17900636,157.49,157.44,31.18090636]
[1730770727337,24.82930636,157.48,157.43,24.82930636]
[1730770727653,31.17900636,157.49,157.43,24.82930636]
[1730770727852,24.82930636,157.48,157.43,24.82930636]
[1730770728042,31.17900636,157.49,157.44,24.82930636]
[1730770729142,56.00831336,157.49,157.44,24.82930636]
[1730770729340,24.95479636,157.48,157.43,24.82930636]
[1730770729640,24.82930636,157.46,157.4,24.82930636]
[1730770729856,24.82930636,157.46,157.41,48.60619036]
[1730770730062,24.82930636,157.47,157.41,48.60619036]
[1730770730257,24.95479636,157.48,157.42,24.82930636]
[1730770732465,31.30509636,157.48,157.42,31.18160636]
[1730770733059,24.82930636,157.47,157.42,31.18160636]
[1730770733446,21.98861034,157.48,157.43,15.51282034]
[1730770733646,15.51282034,157.44,157.39,15.884]
[1730770733846,15.51282034,157.42,157.39,15.884]
[1730770734272,15.51282034,157.41,157.36,37.75442034]
[1730770734569,21.86562034,157.41,157.36,15.8868]
[1730770734746,21.86562034,157.41,157.36,31.39962034]
[1730770735454,31.19263959,157.41,157.36,40.72663959]
[1730770735845,31.19263959,157.41,157.36,15.8868]
[1730770736155,46.23013959,157.43,157.37,24.83983959]
[1730770736739,24.83983959,157.41,157.36,47.08143959]
[1730770737466,24.96532959,157.42,157.37,24.83983959]
[1730770737865,24.96532959,157.42,157.33,40.72963959]
[1730770737866,24.83983959,157.38,157.33,40.72963959]
[1730770738071,24.83983959,157.38,157.33,15.8898]
[1730770738360,24.83983959,157.38,157.33,40.72963959]
[1730770738566,24.83983959,157.39,157.34,24.83983959]
[1730770739058,31.19353959,157.39,157.34,6.3556]
[1730770739563,31.19353959,157.39,157.33,47.08553959]
[1730770740176,31.19353959,157.39,157.33,24.83983959]
[1730770740466,6.3626,157.41,157.36,24.83983959]
[1730770741054,12.7155,157.41,157.36,24.83983959]
[1730770741260,37.55533959,157.41,157.36,24.83983959]
[1730770742078,31.19323959,157.4,157.35,6.355]
[1730770742963,31.19323959,157.4,157.35,31.19483959]
[1730770743567,24.83983959,157.38,157.32,24.83983959]
[1730770743955,24.96532959,157.37,157.31,40.73193959]
[1730770744268,24.83983959,157.36,157.31,15.8921]
[1730770744460,24.83983959,157.35,157.3,24.83983959]
[1730770745651,31.19543959,157.35,157.3,24.83983959]
[1730770746559,0.12549,157.39,157.3,24.83983959]
[1730770746560,31.19383959,157.38,157.32,24.83983959]
[1730770746763,31.19383959,157.38,157.33,24.83983959]
[1730770746955,31.19383959,157.38,157.31,23.776884]
[1730770746956,31.19383959,157.38,157.32,24.83983959]
[1730770747458,31.19383959,157.38,157.33,24.83983959]
[1730770747657,6.354,157.38,157.33,24.83983959]
[1730770748247,6.3536,157.39,157.34,24.83983959]
[1730770748665,31.19343959,157.39,157.33,48.61672359]
[1730770749270,31.19343959,157.39,157.34,31.19543959]
[1730770749472,31.19343959,157.39,157.35,24.83983959]
[1730770749473,6.3536,157.39,157.35,24.83983959]
[1730770749678,6.3532,157.4,157.36,24.83983959]
[1730770750779,6.3532,157.4,157.35,54.97192359]
[1730770750961,31.19303959,157.4,157.34,40.72893959]
[1730770751163,24.83983959,157.39,157.34,15.8891]
[1730770751772,24.83983959,157.39,157.34,40.72893959]
[1730770752077,24.83983959,157.39,157.34,47.08453959]
[1730770752671,6.3537,157.39,157.35,24.83983959]
[1730770753363,31.19353959,157.39,157.33,24.83983959]
[1730770753569,24.83983959,157.38,157.33,23.776884]
[1730770753750,31.19353959,157.39,157.33,24.83983959]
[1730770753953,31.19353959,157.39,157.34,2.35545213]
[1730770754451,24.83983959,157.38,157.32,48.61672359]
[1730770754658,6.3552,157.35,157.31,24.83983959]
[1730770755059,6.3552,157.35,157.32,2.35583141]
[1730770755368,6.3552,157.35,157.31,15.53382345]
[1730770755678,21.88902345,157.35,157.29,15.53382345]
[1730770755886,15.53382345,157.34,157.3,2.35571431]
[1730770756178,15.53382345,157.34,157.29,15.53382345]
[1730770756363,15.53382345,157.34,157.3,2.35536789]
[1730770756875,15.53382345,157.35,157.3,2.35536789]
[1730770757354,15.53382345,157.35,157.29,15.53382345]
[1730770757780,15.53382345,157.35,157.3,15.53382345]
[1730770759687,6.3556,157.34,157.29,15.53382345]
[1730770759986,21.88942345,157.34,157.29,15.53382345]
[1730770760567,6.3552,157.35,157.31,15.53382345]
[1730770761390,6.3552,157.35,157.29,23.776884]
[1730770761391,6.3552,157.35,157.32,15.53382345]
[1730770761882,6.3548,157.36,157.31,21.89062345]
[1730770762471,6.3548,157.36,157.31,15.53382345]
[1730770764287,15.53382345,157.36,157.31,15.53382345]
[1730770765288,15.53382345,157.34,157.28,31.42902345]
[1730770765480,15.53382345,157.3,157.25,15.83569335]
[1730770765686,15.53382345,157.3,157.25,0.3018699]
[1730770765876,15.53382345,157.31,157.26,15.53382345]
[1730770766493,6.3572,157.3,157.26,15.53382345]
[1730770768475,6.3572,157.3,157.25,6.6610699]
[1730770768476,21.89102345,157.3,157.25,22.19489335]
[1730770768781,0.12549,157.29,157.25,0.3018699]
[1730770768976,15.53382345,157.27,157.25,0.3018699]
[1730770769570,15.53382345,157.26,157.25,0.3018699]
[1730770770188,15.65931345,157.27,157.25,0.3018699]
[1730770770686,21.89262345,157.26,157.25,0.3018699]
[1730770773287,21.89232345,157.27,157.25,0.3018699]
[1730770773594,6.3585,157.27,157.25,0.3018699]
[1730770773971,15.53382345,157.29,157.25,0.3018699]
[1730770774180,15.53382345,157.3,157.25,0.3018699]
[1730770774785,15.53382345,157.29,157.25,0.3018699]
[1730770775195,15.53382345,157.3,157.25,22.19489335]
[1730770775499,6.3576,157.29,157.25,0.3018699]
[1730770776914,6.3576,157.29,157.25,15.83569335]
[1730770778194,15.533824,157.28,157.25,15.83569335]
[1730770778584,15.533824,157.28,157.25,22.19479335]
[1730770778984,15.533824,157.28,157.25,0.3018699]
[1730770782795,15.533824,157.28,157.25,38.09309335]
[1730770784496,6.356,157.33,157.28,23.776884]
[1730770784673,6.356,157.33,157.28,39.31070745]
[1730770784876,15.659313,157.31,157.28,39.31070745]
[1730770785198,15.659313,157.31,157.27,15.53382345]
[1730770785372,15.659313,157.31,157.26,37.78962345]
[1730770785573,31.19313645,157.31,157.25,15.83569335]
[1730770785788,15.53382345,157.3,157.25,0.3018699]
[1730770786486,6.3576,157.29,157.25,0.3018699]
[1730770789703,15.53382345,157.29,157.25,0.3018699]
[1730770789894,15.53382345,157.27,157.25,0.3018699]
[1730770790682,15.53382345,157.26,157.25,0.3018699]
[1730770791918,21.89262345,157.26,157.25,0.3018699]
[1730770794183,6.3588,157.26,157.25,0.3018699]
[1730770794385,21.89262345,157.26,157.25,0.3018699]
[1730770794587,22.01811345,157.26,157.25,0.3018699]
[1730770794885,22.14360345,157.26,157.25,0.3018699]
[1730770798104,6.3588,157.26,157.25,0.3018699]
[1730770799219,6.3581,157.28,157.25,0.3018699]
[1730770799902,22.228213,157.31,157.26,15.53382345]
[1730770799903,31.19313645,157.31,157.26,15.53382345]
[1730770800121,15.659313,157.31,157.27,15.53382345]
[1730770800333,22.016313,157.31,157.27,15.53382345]
[1730770800620,37.55013645,157.31,157.26,37.78982345]
[1730770800800,15.53382345,157.3,157.25,0.3018699]
[1730770801204,22.016313,157.31,157.25,0.3018699]
[1730770801205,15.53382345,157.29,157.25,0.3018699]
[1730770802020,15.53382345,157.27,157.25,0.3018699]
[1730770802313,21.89262345,157.27,157.25,0.3018699]
[1730770803017,15.53382345,157.26,157.25,0.3018699]
[1730770804299,21.89262345,157.26,157.25,0.3018699]
[1730770805301,15.53382345,157.28,157.25,0.3018699]
[1730770805520,21.89102345,157.3,157.25,15.83569335]
[1730770806397,6.3572,157.3,157.26,15.53382345]
[1730770806603,22.016213,157.31,157.27,15.53382345]
[1730770807125,22.016213,157.31,157.26,15.53382345]
[1730770807316,22.016213,157.31,157.25,22.5590699]
[1730770807317,22.016213,157.31,157.27,15.53382345]
[1730770807498,22.016213,157.31,157.26,15.53382345]
[1730770807697,37.55003645,157.31,157.26,15.53382345]
[1730770807999,22.016213,157.31,157.26,21.89262345]
[1730770808201,22.016213,157.31,157.27,15.53382345]
[1730770810019,6.3565,157.32,157.27,21.89222345]
[1730770810812,21.89032345,157.32,157.27,21.89222345]
[1730770812424,21.88982345,157.33,157.28,15.53382345]
[1730770812598,21.88982345,157.33,157.27,21.89222345]
[1730770814228,6.3568,157.31,157.27,15.53382345]
[1730770814468,21.89062345,157.31,157.25,15.83569335]
[1730770814722,15.53382345,157.3,157.25,0.3018699]
[1730770815111,6.3568,157.31,157.25,0.3018699]
[1730770815112,15.53382345,157.29,157.25,0.3018699]
[1730770816218,6.358,157.28,157.25,0.3018699]
[1730770817218,15.53382345,157.3,157.25,0.3018699]
[1730770817411,0.12549,157.3,157.26,15.53382345]
[1730770817612,15.65931345,157.32,157.27,15.53382345]
[1730770817820,15.53382345,157.31,157.25,15.83569335]
[1730770818020,15.53382345,157.3,157.25,15.83569335]
[1730770818217,15.53382345,157.29,157.25,0.3018699]
[1730770818419,15.53382345,157.28,157.25,0.3018699]
[1730770818815,15.65931345,157.26,157.25,0.3018699]
[1730770819017,15.78480345,157.26,157.25,0.3018699]
[1730770819419,22.14360345,157.26,157.25,0.3018699]
[1730770820136,42.26909345,157.26,157.25,0.3018699]
[1730770827848,41.89262345,157.26,157.25,0.3018699]
[1730770828341,42.01811345,157.26,157.25,0.3018699]
[1730770828941,42.01811345,157.26,157.25,6.99e-05]
[1730770829144,66.04597745,157.26,157.25,6.99e-05]
[1730770832038,42.26909345,157.26,157.25,6.99e-05]
[1730770833957,66.04597745,157.26,157.25,6.99e-05]
[1730770834632,66.04597745,157.26,157.17,0.3018699]
[1730770834633,20.37647,157.25,157.17,0.3018699]
[1730770834834,15.53382345,157.18,157.17,0.3018699]
[1730770835229,15.65931345,157.18,157.17,0.3018699]
[1730770835434,15.78480345,157.18,157.17,0.3018699]
[1730770835633,35.78480345,157.18,157.17,0.3018699]
[1730770836251,42.14690345,157.18,157.17,0.3018699]
[1730770836631,22.14690345,157.18,157.17,0.3018699]
[1730770836842,6.48759,157.18,157.17,0.3018699]
[1730770837337,22.02141345,157.18,157.17,0.3018699]
[1730770841354,16.4543241,157.18,157.17,0.3018699]
[1730770841737,16.5798141,157.18,157.17,0.3018699]
[1730770841955,16.4543241,157.18,157.17,0.3018699]
[1730770842451,16.5798141,157.18,157.17,0.3018699]
[1730770843156,36.7053041,157.18,157.17,0.3018699]
[1730770848165,36.7053041,157.18,157.17,6.99e-05]
[1730770849656,60.4821881,157.18,157.17,6.99e-05]
[1730770850362,36.7053041,157.18,157.17,6.99e-05]
[1730770853341,36.5798141,157.18,157.17,6.99e-05]
[1730770854052,46.8484181,157.18,157.17,6.99e-05]
[1730770856670,46.9739081,157.18,157.17,6.99e-05]
[1730770856970,70.7507921,157.18,157.17,6.99e-05]
[1730770858355,46.9739081,157.18,157.17,6.99e-05]
[1730770861168,46.8484181,157.18,157.17,6.99e-05]
[1730770861368,26.8484181,157.18,157.17,6.99e-05]
[1730770862260,26.9739081,157.18,157.17,6.99e-05]
[1730770862663,46.9739081,157.18,157.17,6.99e-05]
[1730770868576,70.7507921,157.18,157.17,6.99e-05]
[1730770874272,70.7507921,157.18,157.1,0.3018699]
[1730770874273,20.37647,157.17,157.1,0.3018699]
[1730770874471,9.9667341,157.11,157.1,0.3018699]
[1730770876459,16.3316341,157.11,157.1,0.3018699]
[1730770879682,6.3649,157.11,157.1,0.3018699]
[1730770879856,6.3637,157.14,157.1,10.268604]
[1730770880177,6.3637,157.14,157.1,16.633904]
[1730770880369,6.3637,157.14,157.1,0.3018699]
[1730770881374,9.9667341,157.16,157.11,18.70239785]
[1730770881574,9.9667341,157.16,157.11,16.3316341]
[1730770883152,9.9667341,157.16,157.12,2.37098327]
[1730770883465,6.3625,157.17,157.12,9.9667341]
[1730770883781,10.268604,157.18,157.16,9.9667341]
[1730770884087,6.3609,157.21,157.14,19.3411549]
[1730770884266,16.629504,157.21,157.18,9.9667341]
[1730770884455,10.268604,157.21,157.19,9.9667341]
[1730770884658,6.3602,157.23,157.19,9.9667341]
[1730770884863,16.628804,157.23,157.19,9.9667341]
[1730770885292,10.268604,157.23,157.19,9.9667341]
[1730770885459,9.9667341,157.27,157.21,9.9667341]
[1730770885662,9.9667341,157.28,157.23,9.9667341]
[1730770885964,9.9667341,157.27,157.22,9.9667341]
[1730770886180,9.966734,157.25,157.21,9.9667341]
[1730770886685,9.966734,157.25,157.23,9.9667341]
[1730770886856,9.9667341,157.29,157.24,9.9667341]
[1730770887057,6.3564,157.32,157.21,22.2631]
[1730770887058,9.9667341,157.28,157.23,9.9667341]
[1730770888059,9.9667341,157.27,157.22,23.776884]
[1730770888276,9.9667341,157.25,157.2,33.7436181]
[1730770888574,9.9667341,157.26,157.2,33.7436181]
[1730770888872,15.894,157.25,157.21,9.9667341]
[1730770889076,15.894,157.25,157.24,9.9667341]
[1730770889254,15.894,157.25,157.24,33.7436181]
[1730770889461,15.894,157.25,157.22,9.9667341]
[1730770889666,9.9667341,157.27,157.22,9.9667341]
[1730770889977,16.3253341,157.27,157.22,9.9667341]
[1730770890181,16.3253341,157.27,157.21,33.7436181]
[1730770892281,6.3586,157.27,157.22,9.9667341]
[1730770892779,6.3586,157.27,157.22,16.3271341]
[1730770892966,6.3586,157.27,157.23,33.7436181]
[1730770895691,9.9667341,157.26,157.21,9.9667341]
[1730770896572,16.3253341,157.27,157.22,9.9667341]
[1730770897174,6.3586,157.27,157.23,9.9667341]
[1730770897483,22.0901,157.28,157.24,9.9667341]
[1730770897781,9.9667341,157.32,157.26,9.9667341]
[1730770897961,22.0901,157.31,157.26,9.9667341]
[1730770898157,32.0568341,157.31,157.26,9.9667341]
[1730770899368,16.3239341,157.3,157.25,9.9667341]
[1730770899568,9.9667341,157.29,157.25,23.776884]
[1730770899879,9.9667341,157.28,157.23,9.9667341]
[1730770901571,6.3584,157.27,157.23,23.776884]
[1730770901981,6.3584,157.27,157.23,33.7436181]
[1730770902181,6.3584,157.27,157.23,9.9667341]
[1730770902882,9.9667341,157.29,157.23,9.9667341]
[1730770903086,16.3239341,157.3,157.25,9.9667341]
[1730770903462,16.3239341,157.3,157.24,9.9667341]
[1730770906191,16.3239341,157.3,157.25,9.9667341]
[1730770906403,6.3572,157.3,157.27,9.9667341]
[1730770906682,28.447,157.31,157.27,9.9667341]
[1730770906984,38.4137341,157.31,157.27,23.776884]
[1730770907182,28.447,157.31,157.27,23.776884]
[1730770907369,28.447,157.31,157.27,33.7436181]
[1730770907970,28.447,157.31,157.28,9.9667341]
[1730770908696,6.3565,157.32,157.29,9.9667341]
[1730770908880,6.3565,157.32,157.28,9.9667341]
[1730770909189,30.133384,157.32,157.28,9.9667341]
[1730770909388,30.133384,157.32,157.27,40.1018181]
[1730770909773,9.9667341,157.31,157.27,23.776884]
[1730770909990,9.9667341,157.31,157.26,23.776884]
[1730770910364,9.9667341,157.31,157.26,33.7436181]
[1730770910873,6.3572,157.3,157.26,23.776884]
[1730770911377,6.3572,157.3,157.26,33.7436181]
[1730770911581,16.3239341,157.3,157.26,23.776884]
[1730770912698,6.3572,157.3,157.26,23.776884]
[1730770913168,16.3239341,157.3,157.26,23.776884]
[1730770915483,9.9667341,157.28,157.23,9.9667341]
[1730770915681,9.9667341,157.28,157.22,16.3271341]
[1730770916086,9.9667341,157.28,157.23,9.9667341]
[1730770917987,16.3251341,157.27,157.21,26.2201341]
[1730770918300,16.3251341,157.27,157.22,33.7436181]
[1730770918504,6.3584,157.27,157.22,33.7436181]
[1730770919200,6.3584,157.27,157.23,9.9667341]
[1730770919405,9.9667341,157.29,157.24,9.9667341]
[1730770919585,16.1953,157.31,157.25,23.776884]
[1730770919586,16.3239341,157.3,157.25,23.776884]
[1730770921900,9.9667341,157.29,157.25,23.776884]
[1730770922200,9.9667341,157.29,157.24,23.776884]
[1730770923108,6.358,157.28,157.24,33.7436181]
[1730770923601,16.1953,157.31,157.24,33.7436181]
[1730770923602,6.3569,157.31,157.27,9.9667341]
[1730770923787,6.3569,157.31,157.28,9.9667341]
[1730770924101,9.9667341,157.29,157.23,23.776884]
[1730770924303,9.9667341,157.28,157.23,33.7436181]
[1730770924512,9.9667341,157.29,157.23,33.7436181]
[1730770924711,9.9667341,157.29,157.25,23.776884]
[1730770925088,16.3246341,157.29,157.25,23.776884]
[1730770925286,6.3579,157.29,157.25,23.776884]
[1730770925710,6.3579,157.29,157.25,33.7436181]
[1730770926008,6.3569,157.31,157.27,9.9667341]
[1730770926214,6.3569,157.31,157.28,23.776884]
[1730770926399,23.776884,157.32,157.28,33.7436181]
[1730770926706,6.3552,157.35,157.31,33.7436181]
[1730770927990,16.3219341,157.35,157.3,23.776884]
[1730770929109,24.0787539,157.37,157.32,23.776884]
[1730770929110,16.3215341,157.36,157.32,23.776884]
[1730770929289,6.3548,157.36,157.32,33.7436181]
[1730770929689,6.3548,157.36,157.33,2.36338023]
[1730770929982,30.4332539,157.37,157.33,9.9667341]
[1730770930188,24.0787539,157.37,157.35,23.776884]
[1730770930491,0.3018699,157.37,157.36,9.9667341]
[1730770930821,0.3018699,157.37,157.36,33.8691081]
[1730770931108,0.3018699,157.37,157.36,42.71320395]
[1730770931613,0.3018699,157.37,157.36,82.58014035]
[1730770931791,0.3018699,157.37,157.36,42.71320395]
[1730770931993,0.3018699,157.37,157.36,42.58771395]
[1730770932592,0.3018699,157.37,157.36,40.2239081]
[1730770932806,0.3018699,157.37,157.36,46.35941351]
[1730770933404,0.3018699,157.37,157.36,51.91040652]
[1730770933811,0.3018699,157.37,157.36,67.55362363]
[1730770933985,0.3018699,157.37,157.36,67.67911363]
[1730770934185,0.3018699,157.37,157.36,87.67911363]
[1730770935318,6.6530699,157.45,157.36,87.67911363]
[1730770935319,0.3018699,157.45,157.36,87.67911363]
[1730770935493,0.3018699,157.45,157.44,15.51772711]
[1730770935698,0.3018699,157.45,157.44,39.29461111]
[1730770936094,0.3018699,157.45,157.44,23.776884]
[1730770936809,0.3018699,157.45,157.42,23.776884]
[1730770937114,0.3018699,157.45,157.42,39.29461111]
[1730770937297,0.3018699,157.45,157.43,15.51772711]
[1730770937811,0.3018699,157.45,157.44,23.776884]
[1730770937991,0.3018699,157.45,157.44,39.29461111]
[1730770938188,0.3018699,157.45,157.43,23.776884]
[1730770939405,0.3018699,157.45,157.43,39.29461111]
[1730770939605,0.3018699,157.45,157.43,23.776884]
[1730770939925,0.3018699,157.45,157.43,39.29461111]
[1730770940216,0.3018699,157.45,157.43,45.64641111]
[1730770941408,0.3018699,157.45,157.44,15.64321711]
[1730770941598,0.3018699,157.45,157.44,39.42010111]
[1730770941917,0.3018699,157.45,157.44,45.89719111]
[1730770942095,0.3018699,157.45,157.44,61.54040822]
[1730770942719,0.3018699,157.45,157.44,81.54040822]
[1730770943030,0.3018699,157.53,157.47,20.12549]
[1730770943031,15.517727,157.5,157.47,20.12549]
[1730770943196,15.517727,157.5,157.49,39.42010111]
[1730770943396,0.3018699,157.53,157.49,39.42010111]
[1730770943397,0.3018699,157.53,157.51,0.12549]
[1730770943598,0.3018699,157.53,157.52,15.51772711]
[1730770943814,0.3018699,157.53,157.52,39.67108111]
[1730770944125,0.3018699,157.53,157.52,46.01948111]
[1730770944321,0.3018699,157.53,157.52,45.89399111]
[1730770944628,0.3018699,157.53,157.52,45.76850111]
[1730770946523,0.3018699,157.53,157.52,61.41171822]
[1730770946723,0.3018699,157.53,157.52,45.89399111]
[1730770948923,0.3018699,157.53,157.52,45.76850111]
[1730770949729,0.3018699,157.53,157.52,45.64301111]
[1730770953038,0.3018699,157.53,157.52,45.76850111]
[1730770953323,0.3018699,157.53,157.52,61.41171822]
[1730770954809,0.3018699,157.53,157.52,81.53720822]
[1730770955009,0.3018699,157.53,157.52,87.55530822]
[1730770957043,0.3018699,157.6,157.53,44.153354]
[1730770957224,0.3018699,157.6,157.59,39.29461111]
[1730770957730,0.3018699,157.6,157.59,23.776884]
[1730770957914,0.3018699,157.6,157.59,39.29461111]
[1730770958621,0.3018699,157.6,157.59,45.76560111]
[1730770959520,0.3018699,157.6,157.59,46.01658111]
[1730770960749,0.3018699,157.6,157.59,81.53430822]
[1730770961746,41.8688029,157.68,157.6,44.153354]
[1730770961747,0.3018699,157.68,157.6,44.153354]
[1730770961948,0.3018699,157.68,157.67,39.29461111]
[1730770962435,0.3018699,157.68,157.67,39.42010111]
[1730770962645,0.3018699,157.68,157.67,45.76240111]
[1730770963142,25.386335,157.71,157.68,23.776884]
[1730770963352,25.552324,157.71,157.69,15.51772711]
[1730770963639,0.165989,157.71,157.7,23.776884]
[1730770964334,0.165989,157.71,157.69,30.118384]
[1730770964731,0.165989,157.71,157.68,23.776884]
[1730770965326,0.165989,157.71,157.68,39.29461111]
[1730770966435,0.165989,157.71,157.68,45.63651111]
[1730770966649,0.165989,157.71,157.68,61.49131111]
[1730770969335,0.165989,157.71,157.68,45.973584]
[1730770970045,0.165989,157.71,157.7,23.776884]
[1730770971153,0.165989,157.71,157.7,15.51772711]
[1730770971349,0.165989,157.71,157.7,45.63571111]
[1730770972145,0.165989,157.71,157.7,30.117984]
[1730770972747,0.165989,157.71,157.7,45.63571111]
[1730770973359,0.165989,157.71,157.7,45.76120111]
[1730770974455,0.165989,157.71,157.7,30.117984]
[1730770974654,0.165989,157.71,157.7,81.79719111]
[1730770974862,0.165989,157.71,157.7,81.92268111]
[1730770975361,0.165989,157.71,157.7,76.28993858]
[1730770976243,0.3552047,157.75,157.71,44.153354]
[1730770976441,0.3552047,157.75,157.74,10.26145458]
[1730770976848,0.3552047,157.75,157.74,30.26145458]
[1730770977065,0.3552047,157.75,157.74,76.1978929]
[1730770977574,0.3552047,157.75,157.74,63.98807792]
[1730770978342,0.3552047,157.75,157.74,87.76496192]
[1730770979355,0.3552047,157.75,157.74,72.32715796]
[1730770981145,0.3552047,157.75,157.74,21.77730396]
[1730770981851,0.3552047,157.75,157.74,6.3395]
[1730770982173,0.3552047,157.75,157.73,37.62680396]
[1730770983065,15.43780396,157.77,157.71,21.77820396]
[1730770983270,15.43780396,157.77,157.72,15.43780396]
[1730770983769,21.77490396,157.8,157.75,15.43780396]
[1730770983981,43.16730396,157.81,157.76,15.43780396]
[1730770984157,15.43780396,157.8,157.75,15.43780396]
[1730770984346,15.43780396,157.8,157.76,23.776884]
[1730770984552,36.83050396,157.81,157.76,39.21468796]
[1730770984760,21.3927,157.81,157.77,15.43780396]
[1730770985264,21.3927,157.81,157.78,23.776884]
[1730770985570,21.3927,157.81,157.8,23.776884]
[1730770985777,15.2466,157.81,157.8,23.776884]
[1730770986287,13.2466,157.81,157.77,31.28270396]
[1730770986449,13.2466,157.81,157.78,23.776884]
[1730770986450,15.43780396,157.8,157.78,23.776884]
[1730770987571,15.43780396,157.8,157.77,23.776884]
[1730770987755,19.5833,157.81,157.75,23.776884]
[1730770987756,15.43780396,157.79,157.75,23.776884]
[1730770987950,19.5833,157.81,157.75,39.21468796]
[1730770987951,35.02110396,157.81,157.75,39.21468796]
[1730770988963,35.02110396,157.81,157.77,23.776884]
[1730770989373,15.43780396,157.8,157.77,23.776884]
[1730770990862,35.02110396,157.81,157.77,23.776884]
[1730770991059,13.2466,157.81,157.77,61.39858796]
[1730770991578,28.68440396,157.81,157.77,45.960784]
[1730770991777,13.2466,157.81,157.77,61.39858796]
[1730770991971,15.43780396,157.82,157.77,61.39858796]
[1730770993782,15.43780396,157.8,157.77,39.622684]
[1730770993960,15.43780396,157.81,157.77,39.622684]
[1730770994161,15.43780396,157.81,157.77,45.960984]
[1730770995085,15.43780396,157.8,157.77,45.960984]
[1730770995578,15.79300866,157.84,157.74,15.8486]
[1730770995579,15.43780396,157.78,157.74,15.8486]
[1730770995968,15.43780396,157.79,157.74,15.8486]